{"text_format":"1","workbook":"xlsx","n_sheets":1,"sheets":["Data"],"not_rendered":{"charts":0,"images":0,"macros":1,"external_links":0,"defined_names":8,"comments":0,"pivot_tables":0},"unopened":[],"bounds":{"document_bytes":16777216,"sheet_cells":100000,"rows_first":2000,"rows_last":500,"rows_between":2000,"halvings":0,"cell_chars":16384,"cell_head_chars":4096},"cells_cut":0,"cells_raw":0,"read":"whole","date_system":"1900"}

{"sheet":"Data","index":0,"n_rows":31,"n_cols":37,"rows_kept":31,"cut":false,"hidden":false,"merged":[[0,26,0,31],[1,33,1,35],[1,36,1,38],[30,26,30,27],[30,28,30,29],[1,27,1,29],[1,30,1,32]]}
[null,null,null,null,null,null,null,null,null,"Name","Ttl Wages","FICA WH","SS Wages","Med Wages","Taxable Tips","W2s",null,null,null,null,null,null,null,null,null,null,"TAX RATES"]
[null,null,null,null,null,null,null,null,null,null,null,null,null,null,null,null,null,null,null,null,null,null,null,null,null,null,null,"Employee",null,null,"Employer",null,null,"Employee",null,null,"Employer"]
[null,"1st qtr","2nd qtr","3rd qtr","4th qtr","Total 941","Total W2's","Total W-3",null,null,null,null,null,null,null,null,null,null,null,null,null,null,null,null,null,null,1995,6.2E-2,1.4500000000000001E-2,{"$f":"SUM(AB3:AC3)","v":7.6499999999999999E-2},6.2E-2,1.4500000000000001E-2,{"$f":"SUM(AE3:AF3)","v":7.6499999999999999E-2}]
["# Employees",null,null,null,null,null,null,null,null,null,null,null,null,null,null,null,null,null,null,null,null,null,null,null,null,null,1996,6.2E-2,1.4500000000000001E-2,7.6499999999999999E-2,6.2E-2,1.4500000000000001E-2,7.6499999999999999E-2]
["Wages, tips & other compensation",null,null,null,null,null,null,null,null,null,null,null,null,null,null,null,null,null,null,null,null,null,null,null,null,null,1997,6.2E-2,1.4500000000000001E-2,7.6499999999999999E-2,6.2E-2,1.4500000000000001E-2,7.6499999999999999E-2]
["Total income tax withheld",null,null,null,null,null,null,null,null,null,null,null,null,null,null,null,null,null,null,null,null,null,null,null,null,null,1998,6.2E-2,1.4500000000000001E-2,7.6499999999999999E-2,6.2E-2,1.4500000000000001E-2,7.6499999999999999E-2]
["Taxable social security wages",null,null,null,null,null,null,null,null,null,null,null,null,null,null,null,null,null,null,null,null,null,null,null,null,null,1999,6.2E-2,1.4500000000000001E-2,7.6499999999999999E-2,6.2E-2,1.4500000000000001E-2,7.6499999999999999E-2]
["Taxable social security tips",null,null,null,null,null,null,null,null,null,null,null,null,null,null,null,null,null,null,null,null,null,null,null,null,null,2000,6.2E-2,1.4500000000000001E-2,7.6499999999999999E-2,6.2E-2,1.4500000000000001E-2,7.6499999999999999E-2]
["Taxable Medicare wges & tips.",null,null,null,null,null,null,null,null,null,null,null,null,null,null,null,null,null,null,null,null,null,null,null,null,null,2001,6.2E-2,1.4500000000000001E-2,{"$f":"SUM(AB9:AC9)","v":7.6499999999999999E-2},6.2E-2,1.4500000000000001E-2,{"$f":"SUM(AE9:AF9)","v":7.6499999999999999E-2}]
["Social Security Tax on Wages",null,null,null,null,null,null,null,null,null,null,null,null,null,null,null,null,null,null,null,null,null,null,null,null,null,2002,6.2E-2,1.4500000000000001E-2,{"$f":"SUM(AB10:AC10)","v":7.6499999999999999E-2},6.2E-2,1.4500000000000001E-2,{"$f":"SUM(AE10:AF10)","v":7.6499999999999999E-2}]
["Social Security Tax on tips",null,null,null,null,null,null,null,null,null,null,null,null,null,null,null,null,null,null,null,null,null,null,null,null,null,2003,6.2E-2,1.4500000000000001E-2,7.6499999999999999E-2,6.2E-2,1.4500000000000001E-2,7.6499999999999999E-2]
["Medicare tax on wages & tips",null,null,null,null,null,null,null,null,null,null,null,null,null,null,null,null,null,null,null,null,null,null,null,null,null,2004,6.2E-2,1.4500000000000001E-2,7.6499999999999999E-2,6.2E-2,1.4500000000000001E-2,7.6499999999999999E-2]
["Adjustments",null,null,null,null,null,null,null,null,null,null,null,null,null,null,null,null,null,null,null,null,null,null,null,null,null,2005,6.2E-2,1.4500000000000001E-2,7.6499999999999999E-2,6.2E-2,1.4500000000000001E-2,7.6499999999999999E-2]
["Total SS & Medicare taxes",null,null,null,null,null,null,null,null,null,null,null,null,null,null,null,null,null,null,null,null,null,null,null,null,null,2006,6.2E-2,1.4500000000000001E-2,7.6499999999999999E-2,6.2E-2,1.4500000000000001E-2,7.6499999999999999E-2]
["Total Taxes with adjustments",null,null,null,null,null,null,null,null,null,null,null,null,null,null,null,null,null,null,null,null,null,null,null,null,null,2007,6.2E-2,1.4500000000000001E-2,7.6499999999999999E-2,6.2E-2,1.4500000000000001E-2,7.6499999999999999E-2]
[null,null,null,null,null,null,null,null,null,null,null,null,null,null,null,null,null,null,null,null,null,null,null,null,null,null,2008,6.2E-2,1.4500000000000001E-2,7.6499999999999999E-2,6.2E-2,1.4500000000000001E-2,7.6499999999999999E-2]
[null,null,null,null,null,null,null,null,null,null,null,null,null,null,null,null,null,null,null,null,null,null,null,null,null,null,2009,6.2E-2,1.4500000000000001E-2,7.6499999999999999E-2,6.2E-2,1.4500000000000001E-2,7.6499999999999999E-2]
[null,null,null,null,null,null,null,null,null,null,null,null,null,null,null,null,null,null,null,null,null,null,null,null,null,null,2010,6.2E-2,1.4500000000000001E-2,7.6499999999999999E-2,6.2E-2,1.4500000000000001E-2,7.6499999999999999E-2]
[null,null,null,null,null,null,null,null,null,null,null,null,null,null,null,null,null,null,null,null,null,null,null,null,null,null,2011,4.2000000000000003E-2,1.4500000000000001E-2,{"$f":"SUM(AB19:AC19)","v":5.6500000000000002E-2},6.2E-2,1.4500000000000001E-2,{"$f":"SUM(AE19:AF19)","v":7.6499999999999999E-2}]
[null,null,null,null,null,null,null,null,null,null,null,null,null,null,null,null,null,null,null,null,null,null,null,null,null,null,2012,4.2000000000000003E-2,1.4500000000000001E-2,{"$f":"SUM(AB20:AC20)","v":5.6500000000000002E-2},6.2E-2,1.4500000000000001E-2,{"$f":"SUM(AE20:AF20)","v":7.6499999999999999E-2}]
[null,null,null,null,null,null,null,null,null,null,null,null,null,null,null,null,null,null,null,null,null,null,null,null,null,null,2013,6.2E-2,1.4500000000000001E-2,{"$f":"SUM(AB21:AC21)","v":7.6499999999999999E-2},6.2E-2,1.4500000000000001E-2,{"$f":"SUM(AE21:AF21)","v":7.6499999999999999E-2}]
[null,null,null,null,null,null,null,null,null,null,null,null,null,null,null,null,null,null,null,null,null,null,null,null,null,null,2014,6.2E-2,1.4500000000000001E-2,{"$f":"SUM(AB22:AC22)","v":7.6499999999999999E-2},6.2E-2,1.4500000000000001E-2,{"$f":"SUM(AE22:AF22)","v":7.6499999999999999E-2}]
[null,null,null,null,null,null,null,null,null,null,null,null,null,null,null,null,null,null,null,null,null,null,null,null,null,null,2015]
[null,null,null,null,null,null,null,null,null,null,null,null,null,null,null,null,null,null,null,null,null,null,null,null,null,null,2016]
[null,null,null,null,null,null,null,null,null,null,null,null,null,null,null,null,null,null,null,null,null,null,null,null,null,null,2017]
[null,null,null,null,null,null,null,null,null,null,null,null,null,null,null,null,null,null,null,null,null,null,null,null,null,null,2018]
[null,null,null,null,null,null,null,null,null,null,null,null,null,null,null,null,null,null,null,null,null,null,null,null,null,null,2019]
[null,null,null,null,null,null,null,null,null,null,null,null,null,null,null,null,null,null,null,null,null,null,null,null,null,null,2020]
[]
[]
[null,null,null,null,null,null,null,null,null,null,null,null,null,null,null,null,null,null,null,null,null,null,null,null,null,null,"Employer Share",null,"EmployeeShare"]